fUST/lending_fUST_20260521
["ID","MTS","AMOUNT","RATE_DAILY","PERIOD"]
[422756576,1779370240000,-500.0,8.736e-05,2]
[422756603,1779370240000,-1405.97,8.935e-05,2]
[422756542,1779370240000,-500.0,8.663e-05,2]
[422756545,1779370240000,-500.0,8.663e-05,2]
[422756543,1779370240000,-455.11965153,8.663e-05,2]
[422756547,1779370240000,-500.0,8.663e-05,2]
[422756549,1779370240000,-500.0,8.663e-05,2]
[422756550,1779370240000,-501.33027063,8.663e-05,2]
[422756553,1779370240000,-152.1501408,8.663e-05,2]
[422756555,1779370240000,-500.0,8.663e-05,2]
[422756554,1779370240000,-500.0,8.663e-05,2]
[422756566,1779370240000,-500.0,8.736e-05,2]
[422756552,1779370240000,-500.0,8.663e-05,2]
[422756563,1779370240000,-500.0,8.735e-05,2]
[422756558,1779370240000,-500.0,8.735e-05,2]
[422756556,1779370240000,-177.79866483,8.687e-05,2]
[422756562,1779370240000,-500.0,8.735e-05,2]
[422756557,1779370240000,-500.0,8.735e-05,2]
[422756560,1779370240000,-500.0,8.735e-05,2]
[422756559,1779370240000,-361.03765906,8.735e-05,2]
[422756565,1779370240000,-500.0,8.736e-05,2]
[422756577,1779370240000,-500.0,8.736e-05,2]
[422756575,1779370240000,-500.0,8.736e-05,2]
[422756551,1779370240000,-500.0,8.663e-05,2]
[422756605,1779370240000,-500.0,8.935e-05,2]
[422756617,1779370240000,-151.0,8.936e-05,2]
[422756607,1779370240000,-500.0,8.935e-05,2]
[422756634,1779370240000,-166.79600083,8.937e-05,2]
[422756624,1779370240000,-500.0,8.937e-05,2]
[422756626,1779370240000,-501.78580436,8.937e-05,2]
[422756627,1779370240000,-205.302959,8.937e-05,2]
[422756629,1779370240000,-500.0,8.937e-05,2]
[422756606,1779370240000,-500.0,8.935e-05,2]
[422756625,1779370240000,-620.5905274,8.937e-05,2]
[422756631,1779370240000,-344.7857023,8.937e-05,2]
[422756630,1779370240000,-500.0,8.937e-05,2]
[422756637,1779370240000,-500.0,8.937e-05,2]
[422756635,1779370240000,-298.31438665,8.937e-05,2]
[422756641,1779370240000,-4742.01597224,9e-05,7]
[422756639,1779370240000,-140693.49787468,9e-05,7]
[422756636,1779370240000,-500.0,8.937e-05,2]
[422756640,1779370240000,-2958.53080738,9e-05,7]
[422756638,1779370240000,-500.0,8.937e-05,2]
[422756645,1779370240000,-151.0,8.561e-05,2]
[422756647,1779370240000,-151.0,8.736e-05,2]
[422756648,1779370240000,-151.0,8.936e-05,2]
[422756646,1779370240000,-151.0,8.564e-05,2]
[422756649,1779370240000,-5296.7571945,9e-05,7]
[422756623,1779370240000,-500.0,8.937e-05,2]
[422756621,1779370240000,-151.0,8.936e-05,2]
[422756628,1779370240000,-554.43558451,8.937e-05,2]
[422756632,1779370240000,-500.0,8.937e-05,2]
[422756592,1779370240000,-151.0,8.761e-05,2]
[422756594,1779370240000,-500.0,8.772e-05,2]
[422756599,1779370240000,-500.0,8.935e-05,2]
[422756633,1779370240000,-500.0,8.937e-05,2]
[422756602,1779370240000,-500.0,8.935e-05,2]
[422756596,1779370240000,-500.0,8.837e-05,2]
[422756598,1779370240000,-500.0,8.935e-05,2]
[422756600,1779370240000,-500.0,8.935e-05,2]
[422756595,1779370240000,-177.79866483,8.811e-05,2]
[422756608,1779370240000,-500.0,8.935e-05,2]
[422756610,1779370240000,-500.0,8.935e-05,2]
[422756597,1779370240000,-3546.66504564,8.86e-05,2]
[422756612,1779370240000,-500.0,8.935e-05,2]
[422756620,1779370240000,-177.79866483,8.936e-05,2]
[422756609,1779370240000,-500.0,8.935e-05,2]
[422756619,1779370240000,-2085.1481592,8.936e-05,2]
[422756615,1779370240000,-6218.6445352,8.936e-05,2]
[422756614,1779370240000,-500.0,8.935e-05,2]
[422756613,1779370240000,-709.1126,8.935e-05,2]
[422756616,1779370240000,-56431.6427514,8.936e-05,2]
[422756618,1779370240000,-151.0,8.936e-05,2]
[422756622,1779370240000,-501.96735637,8.937e-05,2]
[422756611,1779370240000,-500.0,8.935e-05,2]
[422756651,1779370241000,-316.73702623,9e-05,7]
[422756650,1779370241000,-1917.85952668,9e-05,7]
[422756667,1779370247000,-166.248629,8.561e-05,2]
[422756671,1779370247000,-6358.9078761,9e-05,7]
[422756669,1779370247000,-89713.03519058,9e-05,7]
[422756668,1779370247000,-500.0,8.735e-05,2]
[422756666,1779370247000,-500.0,8.461e-05,2]
[422756672,1779370247000,-161528.72153,9e-05,7]
[422756670,1779370247000,-1931.125,9e-05,7]
[422756727,1779371432000,-1376.29998,6.134e-05,2]
[422756739,1779371432000,-151.0,7.142e-05,2]
[422756742,1779371432000,-1200.0,7.213e-05,2]
[422756735,1779371432000,-300.0,6.196e-05,2]
[422756740,1779371432000,-300.0,7.213e-05,2]
[422756744,1779371432000,-500.0,7.214e-05,2]
[422756734,1779371432000,-3623.70002,6.134e-05,2]
[422756737,1779371432000,-501.08191506,7.141e-05,2]
[422756746,1779371432000,-500.0,7.214e-05,2]
[422756747,1779371432000,-500.0,7.214e-05,2]
[422756749,1779371432000,-279.15159747,7.214e-05,2]
[422756751,1779371432000,-220.84840253,7.214e-05,2]
[422756757,1779371432000,-500.0,7.214e-05,2]
[422756755,1779371432000,-500.0,7.214e-05,2]
[422756753,1779371432000,-500.0,7.214e-05,2]
[422756759,1779371432000,-105.4033309,7.214e-05,2]
[422756821,1779371441000,-41.00160827,7.214e-05,2]
[422756820,1779371441000,-252.48986305,7.214e-05,2]
[422756823,1779371441000,-458.99839173,7.214e-05,2]
[422756824,1779371441000,-347.76182885,7.214e-05,2]
[422756825,1779371441000,-500.0,7.214e-05,2]
[422756879,1779371442000,-2481.09826505,7.997e-05,2]
[422756870,1779371442000,-300.0,7.359e-05,2]
[422756869,1779371442000,-300.0,7.359e-05,2]
[422756868,1779371442000,-300.0,7.359e-05,2]
[422756864,1779371442000,-300.0,7.359e-05,2]
[422756865,1779371442000,-300.0,7.359e-05,2]
[422756860,1779371442000,-300.0,7.359e-05,2]
[422756863,1779371442000,-300.0,7.359e-05,2]
[422756862,1779371442000,-300.0,7.359e-05,2]
[422756861,1779371442000,-300.0,7.359e-05,2]
[422756859,1779371442000,-300.0,7.359e-05,2]
[422756880,1779371442000,-8259.187388,8.07e-05,2]
[422756866,1779371442000,-300.0,7.359e-05,2]
[422756881,1779371442000,-720.0,8.095e-05,2]
[422756875,1779371442000,-2481.09826506,7.359e-05,2]
[422756871,1779371442000,-300.0,7.359e-05,2]
[422756873,1779371442000,-300.0,7.359e-05,2]
[422756872,1779371442000,-300.0,7.359e-05,2]
[422756877,1779371442000,-420.0,7.934e-05,2]
[422756858,1779371442000,-131423.0590466,7.216e-05,2]
[422756874,1779371442000,-600.0,7.359e-05,2]
[422756878,1779371442000,-1680.0,7.934e-05,2]
[422756876,1779371442000,-2481.09826505,7.678e-05,2]
[422756883,1779371442000,-325.9848009,8.202e-05,2]
[422756884,1779371442000,-607.23090481,8.219e-05,2]
[422756887,1779371442000,-501.55087096,8.219e-05,2]
[422756888,1779371442000,-501.29167151,8.219e-05,2]
[422756886,1779371442000,-502.82750582,8.219e-05,2]
[422756882,1779371442000,-455.3331534,8.202e-05,2]
[422756857,1779371442000,-1838.64554995,7.215e-05,2]
[422756852,1779371442000,-1225.76369995,7.215e-05,2]
[422756854,1779371442000,-1225.76369995,7.215e-05,2]
[422756827,1779371442000,-500.0,7.214e-05,2]
[422756826,1779371442000,-500.0,7.214e-05,2]
[422756828,1779371442000,-237.86257284,7.214e-05,2]
[422756829,1779371442000,-500.0,7.214e-05,2]
[422756831,1779371442000,-1225.76369994,7.215e-05,2]
[422756830,1779371442000,-500.0,7.214e-05,2]
[422756832,1779371442000,-1225.76369994,7.215e-05,2]
[422756833,1779371442000,-1225.76369994,7.215e-05,2]
[422756836,1779371442000,-1225.76369994,7.215e-05,2]
[422756834,1779371442000,-1225.76369994,7.215e-05,2]
[422756838,1779371442000,-1225.76369994,7.215e-05,2]
[422756837,1779371442000,-1225.76369994,7.215e-05,2]
[422756835,1779371442000,-1225.76369994,7.215e-05,2]
[422756842,1779371442000,-1225.76369994,7.215e-05,2]
[422756841,1779371442000,-1225.76369994,7.215e-05,2]
[422756839,1779371442000,-1225.76369994,7.215e-05,2]
[422756840,1779371442000,-1225.76369994,7.215e-05,2]
[422756843,1779371442000,-1225.76369994,7.215e-05,2]
[422756845,1779371442000,-1225.76369994,7.215e-05,2]
[422756846,1779371442000,-1225.76369994,7.215e-05,2]
[422756844,1779371442000,-1225.76369994,7.215e-05,2]
[422756847,1779371442000,-1225.76369995,7.215e-05,2]
[422756848,1779371442000,-1225.76369995,7.215e-05,2]
[422756853,1779371442000,-1225.76369995,7.215e-05,2]
[422756889,1779371442000,-500.3826312,8.219e-05,2]
[422756850,1779371442000,-1225.76369995,7.215e-05,2]
[422756851,1779371442000,-1225.76369995,7.215e-05,2]
[422756849,1779371442000,-1225.76369995,7.215e-05,2]
[422756855,1779371442000,-1225.76369995,7.215e-05,2]
[422756856,1779371442000,-1225.76369995,7.215e-05,2]
[422756885,1779371442000,-500.60845715,8.219e-05,2]
[422756867,1779371442000,-300.0,7.359e-05,2]
[422756890,1779371442000,-500.0,8.219e-05,2]
[422756921,1779371442000,-7407.98,8.219e-05,2]
[422756922,1779371442000,-500.0,8.219e-05,2]
[422756928,1779371442000,-500.0,8.219e-05,2]
[422756923,1779371442000,-500.0,8.219e-05,2]
[422756925,1779371442000,-500.0,8.219e-05,2]
[422756924,1779371442000,-1344.75,8.219e-05,2]
[422756926,1779371442000,-500.0,8.219e-05,2]
[422756927,1779371442000,-500.0,8.219e-05,2]
[422756934,1779371442000,-1029.65,8.219e-05,2]
[422756933,1779371442000,-511.49,8.219e-05,2]
[422756944,1779371442000,-500.0,8.219e-05,2]
[422756937,1779371442000,-500.0,8.219e-05,2]
[422756935,1779371442000,-500.0,8.219e-05,2]
[422756945,1779371442000,-500.0,8.219e-05,2]
[422756920,1779371442000,-500.0,8.219e-05,2]
[422756936,1779371442000,-500.0,8.219e-05,2]
[422756940,1779371442000,-500.0,8.219e-05,2]
[422756938,1779371442000,-500.0,8.219e-05,2]
[422756939,1779371442000,-500.0,8.219e-05,2]
[422756942,1779371442000,-500.0,8.219e-05,2]
[422756943,1779371442000,-500.0,8.219e-05,2]
[422756941,1779371442000,-1005.83,8.219e-05,2]
[422756947,1779371442000,-500.44300907,8.219e-05,2]
[422756954,1779371442000,-386.69537798,8.219e-05,2]
[422756949,1779371442000,-500.0,8.219e-05,2]
[422756948,1779371442000,-500.0,8.219e-05,2]
[422756891,1779371442000,-501.02268742,8.219e-05,2]
[422756952,1779371442000,-500.0,8.219e-05,2]
[422756950,1779371442000,-500.0,8.219e-05,2]
[422756953,1779371442000,-501.8695967,8.219e-05,2]
[422756946,1779371442000,-828.29,8.219e-05,2]
[422756932,1779371442000,-609.36,8.219e-05,2]
[422756951,1779371442000,-571.26,8.219e-05,2]
[422756930,1779371442000,-575.1,8.219e-05,2]
[422756931,1779371442000,-500.0,8.219e-05,2]
[422756892,1779371442000,-500.87071106,8.219e-05,2]
[422756895,1779371442000,-503.2857313,8.219e-05,2]
[422756894,1779371442000,-501.99193987,8.219e-05,2]
[422756906,1779371442000,-500.0,8.219e-05,2]
[422756896,1779371442000,-500.31027463,8.219e-05,2]
[422756905,1779371442000,-502.53497437,8.219e-05,2]
[422756899,1779371442000,-501.34849625,8.219e-05,2]
[422756897,1779371442000,-502.30215868,8.219e-05,2]
[422756898,1779371442000,-501.24724253,8.219e-05,2]
[422756902,1779371442000,-598.16631265,8.219e-05,2]
[422756903,1779371442000,-509.32,8.219e-05,2]
[422756900,1779371442000,-500.61051351,8.219e-05,2]
[422756904,1779371442000,-500.0,8.219e-05,2]
[422756901,1779371442000,-501.05289476,8.219e-05,2]
[422756893,1779371442000,-553.39,8.219e-05,2]
[422756919,1779371442000,-500.0,8.219e-05,2]
[422756908,1779371442000,-500.0,8.219e-05,2]
[422756917,1779371442000,-660.33,8.219e-05,2]
[422756915,1779371442000,-500.0,8.219e-05,2]
[422756916,1779371442000,-500.0,8.219e-05,2]
[422756914,1779371442000,-500.0,8.219e-05,2]
[422756913,1779371442000,-500.0,8.219e-05,2]
[422756929,1779371442000,-682.26,8.219e-05,2]
[422756910,1779371442000,-500.0,8.219e-05,2]
[422756912,1779371442000,-721.56,8.219e-05,2]
[422756909,1779371442000,-500.0,8.219e-05,2]
[422756907,1779371442000,-505.3,8.219e-05,2]
[422756911,1779371442000,-1056.06,8.219e-05,2]
[422756918,1779371442000,-500.0,8.219e-05,2]
[422756979,1779371443000,-501.33794909,8.36e-05,2]
[422756996,1779371443000,-500.0,8.36e-05,2]
[422757004,1779371443000,-500.8301942,8.36e-05,2]
[422757006,1779371443000,-500.0,8.36e-05,2]
[422756992,1779371443000,-500.0,8.36e-05,2]
[422757002,1779371443000,-500.0,8.36e-05,2]
[422756993,1779371443000,-500.0,8.36e-05,2]
[422757001,1779371443000,-530.12,8.36e-05,2]
[422756999,1779371443000,-500.0,8.36e-05,2]
[422757005,1779371443000,-500.87821354,8.36e-05,2]
[422757007,1779371443000,-500.0,8.36e-05,2]
[422756991,1779371443000,-500.0,8.36e-05,2]
[422757011,1779371443000,-500.0,8.36e-05,2]
[422756995,1779371443000,-500.0,8.36e-05,2]
[422756994,1779371443000,-500.0,8.36e-05,2]
[422757008,1779371443000,-505.17335869,8.36e-05,2]
[422757009,1779371443000,-501.41082154,8.36e-05,2]
[422757010,1779371443000,-500.0,8.36e-05,2]
[422757019,1779371443000,-500.0,8.36e-05,2]
[422757012,1779371443000,-500.0,8.36e-05,2]
[422757020,1779371443000,-500.6766785,8.36e-05,2]
[422757021,1779371443000,-500.0,8.36e-05,2]
[422757016,1779371443000,-595.02324751,8.36e-05,2]
[422757015,1779371443000,-501.08337688,8.36e-05,2]
[422756983,1779371443000,-500.0,8.36e-05,2]
[422757013,1779371443000,-481.48564224,8.36e-05,2]
[422756997,1779371443000,-500.0,8.36e-05,2]
[422756981,1779371443000,-283.052523,8.36e-05,2]
[422756972,1779371443000,-2481.09826505,8.315e-05,2]
[422756984,1779371443000,-500.0,8.36e-05,2]
[422757017,1779371443000,-500.96784522,8.36e-05,2]
[422756955,1779371443000,-500.0,8.219e-05,2]
[422756956,1779371443000,-500.0,8.219e-05,2]
[422756957,1779371443000,-508.12096918,8.219e-05,2]
[422756958,1779371443000,-380.72876063,8.219e-05,2]
[422756960,1779371443000,-500.0,8.219e-05,2]
[422756959,1779371443000,-500.0,8.219e-05,2]
[422756962,1779371443000,-500.0,8.219e-05,2]
[422756961,1779371443000,-500.8442278,8.219e-05,2]
[422756969,1779371443000,-500.0,8.219e-05,2]
[422756968,1779371443000,-219.8452967,8.219e-05,2]
[422756971,1779371443000,-409.63104134,8.219e-05,2]
[422756966,1779371443000,-454.73631713,8.219e-05,2]
[422756970,1779371443000,-204.81552067,8.219e-05,2]
[422756963,1779371443000,-501.98676925,8.219e-05,2]
[422756965,1779371443000,-303.15754475,8.219e-05,2]
[422756964,1779371443000,-151.57877238,8.219e-05,2]
[422756967,1779371443000,-209.44161983,8.219e-05,2]
[422756985,1779371443000,-500.0,8.36e-05,2]
[422756989,1779371443000,-623.82585747,8.36e-05,2]
[422756986,1779371443000,-500.0,8.36e-05,2]
[422756988,1779371443000,-500.0,8.36e-05,2]
[422756974,1779371443000,-500.37864395,8.36e-05,2]
[422756987,1779371443000,-501.05,8.36e-05,2]
[422756990,1779371443000,-500.0,8.36e-05,2]
[422756976,1779371443000,-500.0,8.36e-05,2]
[422756977,1779371443000,-500.0,8.36e-05,2]
[422756982,1779371443000,-1321.02,8.36e-05,2]
[422757022,1779371443000,-499.25134861,8.361e-05,2]
[422757088,1779371443000,-502.3190609,8.461e-05,2]
[422757018,1779371443000,-500.85334402,8.36e-05,2]
[422757060,1779371443000,-501.47097091,8.461e-05,2]
[422757067,1779371443000,-501.46710981,8.461e-05,2]
[422757069,1779371443000,-501.05677531,8.461e-05,2]
[422757072,1779371443000,-500.80366715,8.461e-05,2]
[422757079,1779371443000,-500.27551443,8.461e-05,2]
[422757084,1779371443000,-504.11004245,8.461e-05,2]
[422757077,1779371443000,-501.55499102,8.461e-05,2]
[422757075,1779371443000,-500.0,8.461e-05,2]
[422757082,1779371443000,-501.20089964,8.461e-05,2]
[422757086,1779371443000,-501.41580828,8.461e-05,2]
[422757090,1779371443000,-500.74774481,8.461e-05,2]
[422757098,1779371443000,-500.65766034,8.461e-05,2]
[422757065,1779371443000,-500.99044326,8.461e-05,2]
[422757095,1779371443000,-500.28890152,8.461e-05,2]
[422757100,1779371443000,-500.0,8.461e-05,2]
[422757093,1779371443000,-501.98204956,8.461e-05,2]
[422757109,1779371443000,-500.0,8.461e-05,2]
[422757107,1779371443000,-502.45360837,8.461e-05,2]
[422757114,1779371443000,-501.12076974,8.461e-05,2]
[422757112,1779371443000,-500.0,8.461e-05,2]
[422757104,1779371443000,-500.47949785,8.461e-05,2]
[422757110,1779371443000,-501.71720996,8.461e-05,2]
[422757121,1779371443000,-500.30522762,8.461e-05,2]
[422757014,1779371443000,-500.68972276,8.36e-05,2]
[422757117,1779371443000,-500.5327996,8.461e-05,2]
[422757124,1779371443000,-502.09701653,8.461e-05,2]
[422757102,1779371443000,-500.44305801,8.461e-05,2]
[422757063,1779371443000,-502.08940335,8.461e-05,2]
[422757119,1779371443000,-500.0,8.461e-05,2]
[422757051,1779371443000,-501.27925874,8.461e-05,2]
[422757052,1779371443000,-501.47125799,8.461e-05,2]
[422757035,1779371443000,-504.41833816,8.461e-05,2]
[422757034,1779371443000,-503.36622058,8.461e-05,2]
[422757023,1779371443000,-500.0,8.361e-05,2]
[422757026,1779371443000,-500.0,8.361e-05,2]
[422757025,1779371443000,-500.32425284,8.361e-05,2]
[422757031,1779371443000,-500.0,8.461e-05,2]
[422757032,1779371443000,-509.63202594,8.461e-05,2]
[422757028,1779371443000,-500.8328353,8.461e-05,2]
[422757027,1779371443000,-8259.187388,8.41e-05,2]
[422757029,1779371443000,-504.22956978,8.461e-05,2]
[422757033,1779371443000,-501.48358939,8.461e-05,2]
[422757030,1779371443000,-514.26835977,8.461e-05,2]
[422757036,1779371443000,-501.643361,8.461e-05,2]
[422757024,1779371443000,-500.83338792,8.361e-05,2]
[422757039,1779371443000,-500.24171866,8.461e-05,2]
[422757040,1779371443000,-221.07100939,8.461e-05,2]
[422757043,1779371443000,-502.8618255,8.461e-05,2]
[422757044,1779371443000,-501.20120435,8.461e-05,2]
[422757045,1779371443000,-491.26703836,8.461e-05,2]
[422757046,1779371443000,-500.0,8.461e-05,2]
[422757049,1779371443000,-500.88247139,8.461e-05,2]
[422757050,1779371443000,-501.18324892,8.461e-05,2]
[422757041,1779371443000,-500.7394318,8.461e-05,2]
[422757048,1779371443000,-500.0,8.461e-05,2]
[422757042,1779371443000,-500.0,8.461e-05,2]
[422757037,1779371443000,-501.90586945,8.461e-05,2]
[422757047,1779371443000,-500.3364697,8.461e-05,2]
[422757216,1779371444000,-501.35215939,8.461e-05,2]
[422757203,1779371444000,-500.46776237,8.461e-05,2]
[422757201,1779371444000,-500.0,8.461e-05,2]
[422757197,1779371444000,-502.31531555,8.461e-05,2]
[422757205,1779371444000,-500.82496973,8.461e-05,2]
[422757210,1779371444000,-500.71624484,8.461e-05,2]
[422757199,1779371444000,-500.91125899,8.461e-05,2]
[422757192,1779371444000,-524.75908751,8.461e-05,2]
[422757208,1779371444000,-500.60313921,8.461e-05,2]
[422757212,1779371444000,-501.47421235,8.461e-05,2]
[422757194,1779371444000,-500.59751258,8.461e-05,2]
[422757227,1779371444000,-501.4024381,8.461e-05,2]
[422757218,1779371444000,-505.58002744,8.461e-05,2]
[422757220,1779371444000,-250.10800948,8.461e-05,2]
[422757229,1779371444000,-501.37610001,8.461e-05,2]
[422757223,1779371444000,-502.35113549,8.461e-05,2]
[422757232,1779371444000,-501.77,8.461e-05,2]
[422757234,1779371444000,-500.91292475,8.461e-05,2]
[422757225,1779371444000,-502.13098011,8.461e-05,2]
[422757236,1779371444000,-160.48620119,8.461e-05,2]
[422757241,1779371444000,-502.10653245,8.461e-05,2]
[422757238,1779371444000,-500.0,8.461e-05,2]
[422757188,1779371444000,-500.0,8.461e-05,2]
[422757245,1779371444000,-501.64670162,8.461e-05,2]
[422757214,1779371444000,-500.29310602,8.461e-05,2]
[422757187,1779371444000,-501.59952013,8.461e-05,2]
[422757148,1779371444000,-500.8341153,8.461e-05,2]
[422757172,1779371444000,-502.36684424,8.461e-05,2]
[422757243,1779371444000,-500.0,8.461e-05,2]
[422757135,1779371444000,-500.0,8.461e-05,2]
[422757128,1779371444000,-640.67547344,8.461e-05,2]
[422757126,1779371444000,-500.85971247,8.461e-05,2]
[422757137,1779371444000,-200.06466792,8.461e-05,2]
[422757133,1779371444000,-500.84058652,8.461e-05,2]
[422757130,1779371444000,-500.0,8.461e-05,2]
[422757139,1779371444000,-501.169022,8.461e-05,2]
[422757142,1779371444000,-500.0,8.461e-05,2]
[422757144,1779371444000,-500.9374961,8.461e-05,2]
[422757146,1779371444000,-501.54089256,8.461e-05,2]
[422757157,1779371444000,-500.0,8.461e-05,2]
[422757151,1779371444000,-500.0,8.461e-05,2]
[422757153,1779371444000,-501.90399515,8.461e-05,2]
[422757155,1779371444000,-501.98104616,8.461e-05,2]
[422757159,1779371444000,-501.26508614,8.461e-05,2]
[422757163,1779371444000,-504.91924248,8.461e-05,2]
[422757161,1779371444000,-500.44362707,8.461e-05,2]
[422757165,1779371444000,-599.50300984,8.461e-05,2]
[422757177,1779371444000,-500.60115594,8.461e-05,2]
[422757167,1779371444000,-500.3456281,8.461e-05,2]
[422757180,1779371444000,-501.20161476,8.461e-05,2]
[422757184,1779371444000,-501.66797562,8.461e-05,2]
[422757174,1779371444000,-501.26179018,8.461e-05,2]
[422757170,1779371444000,-501.55669434,8.461e-05,2]
[422757190,1779371444000,-500.41731141,8.461e-05,2]
[422757247,1779371444000,-169.43972076,8.461e-05,2]
[422757318,1779371444000,-501.39917324,8.461e-05,2]
[422757257,1779371444000,-500.0,8.461e-05,2]
[422757311,1779371444000,-406.16330774,8.461e-05,2]
[422757313,1779371444000,-500.87784273,8.461e-05,2]
[422757309,1779371444000,-634.54530761,8.461e-05,2]
[422757315,1779371444000,-500.25777061,8.461e-05,2]
[422757316,1779371444000,-186.47882676,8.461e-05,2]
[422757357,1779371444000,-500.0,8.493e-05,2]
[422757320,1779371444000,-502.0304904,8.461e-05,2]
[422757324,1779371444000,-501.16528798,8.461e-05,2]
[422757322,1779371444000,-500.71279038,8.461e-05,2]
[422757337,1779371444000,-606.31508951,8.473e-05,2]
[422757327,1779371444000,-501.13661885,8.461e-05,2]
[422757339,1779371444000,-418.88323967,8.473e-05,2]
[422757331,1779371444000,-151.0,8.461e-05,2]
[422757330,1779371444000,-501.01943857,8.461e-05,2]
[422757326,1779371444000,-501.51230276,8.461e-05,2]
[422757335,1779371444000,-151.0,8.461e-05,2]
[422757348,1779371444000,-500.0,8.493e-05,2]
[422757341,1779371444000,-500.0,8.493e-05,2]
[422757345,1779371444000,-500.0,8.493e-05,2]
[422757343,1779371444000,-500.0,8.493e-05,2]
[422757349,1779371444000,-1056.06,8.493e-05,2]
[422757353,1779371444000,-660.33,8.493e-05,2]
[422757351,1779371444000,-721.56,8.493e-05,2]
[422757355,1779371444000,-500.0,8.493e-05,2]
[422757249,1779371444000,-500.0,8.461e-05,2]
[422757307,1779371444000,-500.0,8.461e-05,2]
[422757305,1779371444000,-500.44235235,8.461e-05,2]
[422757333,1779371444000,-151.0,8.461e-05,2]
[422757301,1779371444000,-481.80642524,8.461e-05,2]
[422757259,1779371444000,-500.0,8.461e-05,2]
[422757303,1779371444000,-501.75380304,8.461e-05,2]
[422757272,1779371444000,-502.18578625,8.461e-05,2]
[422757261,1779371444000,-211.23125711,8.461e-05,2]
[422757260,1779371444000,-501.26695661,8.461e-05,2]
[422757264,1779371444000,-500.0,8.461e-05,2]
[422757262,1779371444000,-558.08538163,8.461e-05,2]
[422757265,1779371444000,-502.18767605,8.461e-05,2]
[422757274,1779371444000,-500.0,8.461e-05,2]
[422757267,1779371444000,-500.28279638,8.461e-05,2]
[422757270,1779371444000,-501.05505094,8.461e-05,2]
[422757278,1779371444000,-368.85879424,8.461e-05,2]
[422757263,1779371444000,-501.77618581,8.461e-05,2]
[422757284,1779371444000,-500.93474042,8.461e-05,2]
[422757269,1779371444000,-501.081977,8.461e-05,2]
[422757282,1779371444000,-503.89675225,8.461e-05,2]
[422757280,1779371444000,-507.99128184,8.461e-05,2]
[422757292,1779371444000,-500.0,8.461e-05,2]
[422757294,1779371444000,-501.12205853,8.461e-05,2]
[422757286,1779371444000,-502.67051564,8.461e-05,2]
[422757297,1779371444000,-501.68595189,8.461e-05,2]
[422757300,1779371444000,-501.37860688,8.461e-05,2]
[422757288,1779371444000,-500.0,8.461e-05,2]
[422757290,1779371444000,-502.33090331,8.461e-05,2]
[422757276,1779371444000,-501.6531034,8.461e-05,2]
[422757296,1779371444000,-500.43910363,8.461e-05,2]
[422757444,1779371445000,-151.0,8.516e-05,2]
[422757446,1779371445000,-162.380719,8.516e-05,2]
[422757428,1779371445000,-459.73859093,8.498e-05,2]
[422757452,1779371445000,-537.6845,8.516e-05,2]
[422757450,1779371445000,-537.6845,8.516e-05,2]
[422757448,1779371445000,-500.0,8.516e-05,2]
[422757442,1779371445000,-500.65299361,8.498e-05,2]
[422757436,1779371445000,-500.0,8.498e-05,2]
[422757432,1779371445000,-500.85443273,8.498e-05,2]
[422757430,1779371445000,-500.0,8.498e-05,2]
[422757440,1779371445000,-392.06390729,8.498e-05,2]
[422757438,1779371445000,-501.09917195,8.498e-05,2]
[422757454,1779371445000,-557.5788265,8.571e-05,2]
[422757434,1779371445000,-500.0,8.498e-05,2]
[422757455,1779371445000,-160.0,8.6e-05,2]
[422757477,1779371445000,-500.0,8.634e-05,2]
[422757465,1779371445000,-500.0,8.634e-05,2]
[422757457,1779371445000,-578.20924308,8.626e-05,2]
[422757459,1779371445000,-197.55440111,8.634e-05,2]
[422757467,1779371445000,-500.0,8.634e-05,2]
[422757469,1779371445000,-500.0,8.634e-05,2]
[422757461,1779371445000,-500.0,8.634e-05,2]
[422757471,1779371445000,-500.0,8.634e-05,2]
[422757473,1779371445000,-500.0,8.634e-05,2]
[422757475,1779371445000,-1052.0586,8.634e-05,2]
[422757478,1779371445000,-586.52526834,8.634e-05,2]
[422757480,1779371445000,-500.0,8.634e-05,2]
[422757482,1779371445000,-500.0,8.634e-05,2]
[422757486,1779371445000,-500.0,8.634e-05,2]
[422757427,1779371445000,-502.26748485,8.498e-05,2]
[422757463,1779371445000,-1321.02,8.634e-05,2]
[422757411,1779371445000,-500.0,8.493e-05,2]
[422757359,1779371445000,-7407.98,8.493e-05,2]
[422757425,1779371445000,-500.0,8.498e-05,2]
[422757364,1779371445000,-1344.75,8.493e-05,2]